bitfinex-derivatives/quotes_SOLF0:USTF0_20250206
["timestamp","ask_amount","ask_price","bid_price","bid_amount"]
[1738804177507,3.1525,198.45,198.34,1.5958]
[1738804177709,8.1913,198.45,198.39,5.0402]
[1738804178016,0.0336156,198.44,198.4,0.03467383]
[1738804178615,0.0336156,198.44,198.42,5.0395]
[1738804180209,3.0616,198.53,198.47,5.0382]
[1738804180407,3.0616,198.53,198.41,21.94680954]
[1738804180408,1.5951,198.55,198.41,21.94680954]
[1738804180613,6.6314,198.55,198.41,21.94680954]
[1738804180813,1.5951,198.55,198.41,21.94680954]
[1738804181418,0.03589693,198.5,198.48,5.0378]
[1738804182220,88.4374589,198.65,198.53,5.0367]
[1738804182516,88.4374589,198.65,198.53,21.94680954]
[1738804182707,54.05842905,198.64,198.53,21.94680954]
[1738804183307,59.09242905,198.64,198.57,5.0357]
[1738804183816,21.94680954,198.59,198.33,3.8]
[1738804184018,3.1158,198.58,198.42,1.4987]
[1738804184816,0.03486787,198.52,198.48,0.03788306]
[1738804185808,0.03486787,198.52,198.5,5.0375]
[1738804187321,5.0346,198.62,198.54,5.0363]
[1738804187912,5.0348,198.61,198.54,5.0363]
[1738804188317,5.0348,198.61,198.56,0.03207049]
[1738804188520,5.0344,198.63,198.56,0.03207049]
[1738804188719,3.0955,198.65,198.56,0.03207049]
[1738804189417,3.0955,198.65,198.57,5.0357]
[1738804189919,5.034,198.64,198.57,5.0357]
[1738804190516,3.0955,198.65,198.57,5.0357]
[1738804190715,5.0344,198.62,198.56,0.03207049]
[1738804190910,3.0955,198.65,198.56,0.03207049]
[1738804191319,5.0344,198.63,198.56,0.03207049]
[1738804191520,3.0955,198.65,198.56,0.03207049]
[1738804193318,5.0339,198.64,198.58,5.0354]
[1738804194921,3.0955,198.65,198.59,5.0351]
[1738804195118,1.6222,198.69,198.56,21.94680954]
[1738804195314,1.6222,198.69,198.6,0.0383273]
[1738804196222,5.0336,198.66,198.6,0.0383273]
[1738804196518,1.6222,198.69,198.6,0.0383273]
[1738804196913,1.5332,198.7,198.6,0.0383273]
[1738804197116,1.5332,198.7,198.6,21.98513684]
[1738804198217,1.5332,198.7,198.6,0.0383273]
[1738804198720,5.0337,198.65,198.6,0.0383273]
[1738804199315,5.0339,198.64,198.6,0.0383273]
[1738804199625,1.5332,198.7,198.6,0.0383273]
[1738804200317,21.94680954,198.68,198.6,0.0383273]
[1738804200512,5.0347,198.61,198.6,0.0383273]
[1738804200916,5.3825,198.67,198.5,21.94680954]
[1738804201514,5.0345,198.62,198.51,5.037]
[1738804201716,5.3825,198.67,198.51,5.037]
[1738804201917,5.077,198.66,198.51,5.037]
[1738804202116,0.03719672,198.61,198.57,0.03267632]
[1738804203117,5.07209672,198.61,198.57,0.03267632]
[1738804203421,0.03719672,198.61,198.57,0.03267632]
[1738804203623,0.03719672,198.61,198.46,21.94680954]
[1738804203824,1.5281,198.63,198.46,21.94680954]
[1738804204822,0.03716119,198.56,198.53,0.03725951]
[1738804205022,1.5281,198.63,198.53,0.03725951]
[1738804205222,5.0363,198.55,198.53,0.03725951]
[1738804206527,0.03229064,198.56,198.53,0.03725951]
[1738804206927,1.6025,198.67,198.54,21.94680954]
[1738804207225,5.0338,198.65,198.54,21.94680954]
[1738804207431,1.6025,198.67,198.58,21.94680954]
[1738804207929,1.6025,198.67,198.51,4.4607]
[1738804207930,1.6025,198.67,198.54,21.94680954]
[1738804208124,0.03526573,198.64,198.61,0.03545661]
[1738804211124,0.03526573,198.64,198.62,5.0343]
[1738804211329,1.6263,198.73,198.62,21.94680954]
[1738804211730,5.0323,198.71,198.64,5.0339]
[1738804212127,1.6263,198.73,198.62,21.94680954]
[1738804212325,6.6582,198.73,198.66,5.0334]
[1738804212529,6.6582,198.73,198.66,5.06591578]
[1738804212937,8.1848,198.75,198.66,5.06591578]
[1738804213824,5.0316,198.74,198.66,5.06591578]
[1738804215337,5.0317,198.73,198.66,5.06591578]
[1738804217636,5.0317,198.73,198.67,5.0331]
[1738804218137,4.7035,198.79,198.66,21.97932532]
[1738804218531,9.7338,198.79,198.73,5.0315]
[1738804219636,9.7338,198.79,198.72,13.66501689]
[1738804220634,9.7338,198.79,198.71,5.06910616]
[1738804220635,9.7338,198.79,198.71,0.03720616]
[1738804220838,9.7338,198.79,198.72,5.0319]
[1738804221839,5.0303,198.79,198.71,0.03720616]
[1738804222035,20.33674098,198.9,198.77,21.86723393]
[1738804222239,20.33674098,198.9,198.71,0.03720616]
[1738804222240,20.33674098,198.9,198.81,21.86723393]
[1738804223034,20.33674098,198.94,198.84,0.0371172]
[1738804223736,5.0273,198.91,198.84,5.0659172]
[1738804223934,3.26820348,198.9,198.84,5.0659172]
[1738804224139,3.26820348,198.89,198.84,0.0371172]
[1738804224334,3.26820348,198.88,198.84,5.0659172]
[1738804224640,3.26820348,198.87,198.84,5.0659172]
[1738804224831,3.26820348,198.86,198.84,5.0659172]
[1738804225032,2.01120214,198.9,198.85,5.0286]
[1738804225230,3.2682176,198.89,198.85,5.0286]
[1738804225535,7.39346054,198.88,198.85,5.0286]
[1738804225733,1.25701546,198.87,198.85,5.0286]
[1738804225931,1.25701546,198.86,198.85,5.0286]
[1738804226141,1.25701546,198.86,198.84,0.0371172]
[1738804226337,2.01121816,198.89,198.84,0.0371172]
[1738804226537,3.26825538,198.88,198.84,0.0371172]
[1738804226736,1.25703722,198.87,198.84,5.0659172]
[1738804226938,5.0274,198.9,198.84,5.0659172]
[1738804227138,1.25702888,198.89,198.84,5.0659172]
[1738804227538,1.25702888,198.89,198.85,5.0286]
[1738804227740,1.25702888,198.88,198.85,5.0286]
[1738804227943,5.37504868,198.87,198.84,0.0371172]
[1738804228242,1.25711299,198.86,198.84,0.0371172]
[1738804228435,1.25711299,198.85,198.84,0.0371172]
[1738804228836,5.37504868,198.85,198.84,0.0371172]
[1738804229440,5.37504868,198.85,198.84,5.0660172]
[1738804230447,4.11793569,198.85,198.84,5.0660172]
[1738804230641,4.6695,198.96,198.84,0.0371172]
[1738804230843,5.0266,198.93,198.87,5.028]
[1738804231043,1.25690907,198.92,198.87,5.028]
[1738804231237,1.25690907,198.91,198.87,5.06632382]
[1738804231442,1.25690907,198.9,198.87,5.06632382]
[1738804231642,5.0266,198.93,198.87,5.06632382]
[1738804231643,1.25690907,198.89,198.87,5.06632382]
[1738804231845,1.25690907,198.88,198.87,5.06632382]
[1738804232046,4.6695,198.96,198.87,0.03832382]
[1738804232243,1.25684664,198.95,198.88,5.0278]
[1738804232442,1.25684664,198.94,198.88,5.0278]
[1738804232643,1.25684664,198.93,198.88,5.0278]
[1738804232839,1.25684664,198.92,198.88,5.0278]
[1738804233041,1.25684664,198.91,198.88,5.0278]
[1738804233243,25.64723393,199.03,198.88,21.86723393]
[1738804233446,1.5704,199.01,198.88,21.86723393]
[1738804233644,5.0257,198.97,198.89,5.0274]
[1738804233844,21.86723393,199.0,198.93,0.03199053]
[1738804234245,5.0259,198.96,198.89,5.0276]
[1738804234444,5.0259,198.96,198.95,0.03742874]
[1738804234640,5.0259,198.96,198.89,5.0276]
[1738804234844,5.0259,198.96,198.94,0.03373594]
[1738804235044,21.86723393,199.0,198.87,5.028]
[1738804235244,21.86723393,199.0,198.88,0.03763732]
[1738804235445,21.86723393,199.0,198.83,21.86723393]
[1738804235645,21.86723393,199.0,198.92,0.03359319]
[1738804236247,5.0264,198.94,198.92,0.03359319]
[1738804238854,21.86723393,199.0,198.92,0.03359319]
[1738804239254,1.5704,199.01,198.92,0.03359319]
[1738804239760,5.0258,198.96,198.92,0.03359319]
[1738804241357,5.0266,198.93,198.92,0.03359319]
[1738804244557,13.64862991,198.98,198.92,0.03359319]
[1738804244558,5.0262,198.95,198.92,0.03359319]
[1738804245060,13.64862991,199.01,198.92,0.03359319]
[1738804245260,5.0266,198.93,198.92,0.03359319]
[1738804246361,6.28350657,198.93,198.92,0.03359319]
[1738804246766,6.28350657,198.93,198.92,9.319e-05]
[1738804246965,6.29590657,198.93,198.78,18.67872991]
[1738804247161,5.0289,198.84,198.78,18.67872991]
[1738804247357,5.0289,198.84,198.78,13.64862991]
[1738804247669,13.64862991,198.88,198.77,5.0306]
[1738804247967,1.25729913,198.87,198.75,13.64862991]
[1738804248168,5.0295,198.82,198.81,0.03475455]
[1738804248469,0.03198274,198.84,198.81,0.03475455]
[1738804250462,1.25729696,198.83,198.81,0.03475455]
[1738804250663,1.25729696,198.82,198.81,0.03475455]
[1738804251461,6.28669696,198.82,198.81,0.03475455]
[1738804253265,5.0294,198.82,198.81,0.03475455]
[1738804253469,6.28691738,198.82,198.81,0.03475455]
[1738804254172,1.25751738,198.82,198.81,0.03475455]
[1738804255365,13.64862991,198.91,198.81,0.03475455]
[1738804255366,20.33674098,198.97,198.9,5.0273]
[1738804255569,1.25686604,198.96,198.87,13.64862991]
[1738804255770,20.33674098,198.97,198.87,13.64862991]
[1738804256168,20.33674098,198.97,198.84,13.64862991]
[1738804256670,5.0262,198.95,198.89,0.03475112]
[1738804256873,20.33674098,198.97,198.89,0.03475112]
[1738804257172,13.64862991,198.95,198.89,0.03475112]
[1738804257369,5.0272,198.91,198.89,0.03475112]
[1738804258574,5.0272,198.91,198.89,5.112e-05]
[1738804260968,0.03310453,198.92,198.89,5.112e-05]
[1738804262468,5.0271,198.91,198.89,5.112e-05]
[1738804262974,0.03310453,198.92,198.89,5.112e-05]
[1738804263679,5.0271,198.91,198.89,5.112e-05]
[1738804263970,0.03310453,198.92,198.89,5.112e-05]
[1738804264876,0.03310453,198.92,198.9,5.0273]
[1738804265679,0.03310453,198.92,198.89,5.112e-05]
[1738804266767,0.03310453,198.92,198.9,5.0273]
[1738804268982,0.03310453,198.92,198.89,5.112e-05]
[1738804270369,0.03310453,198.92,198.91,13.64862991]
[1738804270572,25.92468719,199.07,198.91,13.64862991]
[1738804270876,5.0248,199.0,198.95,5.0261]
[1738804271072,5.0248,199.0,198.94,13.64862991]
[1738804271381,5.0248,199.0,198.94,18.67492991]
[1738804271678,5.0248,199.0,198.95,0.03484321]
[1738804272073,13.64862991,199.04,198.95,0.03484321]
[1738804272279,13.64862991,199.04,198.92,5.0267]
[1738804272472,13.64862991,199.04,198.98,0.03853587]
[1738804272672,5.0251,198.99,198.98,0.03853587]
[1738804273775,13.64862991,199.04,198.98,0.03853587]
[1738804273982,13.64862991,199.07,198.98,0.03853587]
[1738804274176,13.64862991,199.07,198.94,13.64862991]
[1738804274377,13.64862991,199.07,199.01,0.03327916]
[1738804275586,5.0243,199.02,199.01,0.03327916]
[1738804276288,5.0243,199.02,199.01,7.916e-05]
[1738804278792,5.0257,198.97,198.88,18.67622991]
[1738804279084,13.64862991,199.01,198.88,18.67622991]
[1738804279590,5.0262,198.95,198.88,13.64862991]
[1738804279992,0.03378202,198.93,198.9,0.03741855]
[1738804280789,5.06038202,198.93,198.9,0.03741855]
[1738804280989,0.03378202,198.93,198.9,0.03741855]
[1738804286501,27.29725982,198.91,198.72,69.69776744]
[1738804286700,13.64862991,198.84,198.73,24.04049797]
[1738804287000,5.0291,198.83,198.75,5.0311]
[1738804287199,5.0291,198.83,198.75,32.92204944]
[1738804287500,0.03357878,198.81,198.77,0.03262441]
[1738804290099,5.06337878,198.81,198.77,0.03262441]
[1738804290698,5.03,198.8,198.77,0.03262441]
[1738804290896,13.68220869,198.81,198.77,0.03262441]
[1738804292000,5.0302,198.79,198.77,0.03262441]
[1738804292695,13.64862991,198.78,198.77,0.03262441]
[1738804293495,13.64862991,198.78,198.77,2.441e-05]
[1738804293900,13.64862991,198.78,198.66,5.0332]
[1738804294098,13.64862991,198.75,198.63,13.64862991]
[1738804294303,13.64862991,198.72,198.61,1.6083]
[1738804294602,5.0324,198.7,198.61,1.6083]
[1738804295099,5.0324,198.7,198.64,0.03578031]
[1738804295100,0.03214692,198.67,198.64,0.03578031]
[1738804295404,5.0336,198.66,198.64,8.031e-05]
[1738804296200,13.64862991,198.65,198.64,8.031e-05]
[1738804296602,5.0353,198.59,198.55,27.89094944]
[1738804297099,13.64862991,198.62,198.55,27.89094944]
[1738804297402,5.0358,198.57,198.55,27.89094944]
[1738804298098,0.03213416,198.58,198.55,27.89094944]
[1738804299501,0.03213416,198.58,198.54,0.03279652]
[1738804300503,0.03213416,198.58,198.54,13.68142643]
[1738804300800,13.64862991,198.74,198.57,13.64862991]
[1738804301110,5.0327,198.69,198.61,5.0345]
[1738804302007,0.03671192,198.67,198.63,0.03703376]
[1738804303502,0.03671192,198.67,198.65,5.0335]
[1738804303703,1.6026,198.79,198.66,21.88887929]
[1738804304007,5.0309,198.76,198.68,5.0327]
[1738804304507,5.0306,198.78,198.7,5.0324]
[1738804304907,0.03272988,198.76,198.72,0.03830024]
[1738804305405,5.06362988,198.76,198.72,0.03830024]
[1738804305707,0.03272988,198.76,198.72,0.03830024]
[1738804306206,5.0312,198.75,198.72,0.03830024]
[1738804306407,0.03272988,198.76,198.72,0.03830024]
[1738804307100,0.03272988,198.76,198.72,5.07010024]
[1738804307301,0.03272988,198.76,198.72,0.03830024]
[1738804307708,0.03272988,198.76,198.74,5.0313]
[1738804311804,0.03272988,198.76,198.72,0.03830024]
[1738804312105,5.0283,198.87,198.72,21.92717953]
[1738804312307,4.5968,198.94,198.73,1.5915]
[1738804312507,4.5968,198.94,198.81,5.0296]
[1738804313209,0.03770533,198.87,198.84,0.03540221]
[1738804313807,0.03770533,198.87,198.85,5.0286]
[1738804314211,0.03770533,198.87,198.84,0.03540221]
[1738804317316,5.0285,198.86,198.84,0.03540221]
[1738804317616,0.03770533,198.87,198.84,0.03540221]
[1738804318008,5.06610533,198.87,198.84,0.03540221]
[1738804319017,0.03770533,198.87,198.84,0.03540221]
[1738804320820,5.06590533,198.87,198.84,0.03540221]
[1738804321022,0.03770533,198.87,198.84,0.03540221]
[1738804325223,5.0286,198.85,198.84,0.03540221]
[1738804325623,5.0286,198.85,198.84,2.21e-06]
[1738804327124,6.6017,198.85,198.84,2.21e-06]
[1738804327920,8.0899,198.85,198.84,2.21e-06]
[1738804328230,9.6788,198.85,198.84,2.21e-06]
[1738804328732,5.0299,198.8,198.73,5.0316]
[1738804329229,5.0299,198.8,198.71,5.0319]
[1738804329430,5.0299,198.8,198.7,13.65471624]
[1738804329930,0.03834982,198.77,198.73,0.03523277]
[1738804330132,0.03834982,198.77,198.73,5.06683277]
[1738804331032,5.0313,198.75,198.73,0.03523277]
[1738804332126,0.03834982,198.77,198.73,0.03523277]
[1738804334638,0.03834982,198.77,198.73,13.68994901]
[1738804335835,0.03834982,198.77,198.74,5.0314]
[1738804337434,0.03834982,198.77,198.73,0.03523277]
[1738804339636,5.0309,198.76,198.73,0.03523277]
[1738804341041,5.0314,198.74,198.73,0.03523277]
[1738804345940,5.0324,198.7,198.65,5.0337]
[1738804347041,0.0376447,198.69,198.66,0.03472115]
[1738804347245,5.033,198.68,198.66,0.03472115]
[1738804347743,0.0376447,198.69,198.66,0.03472115]
[1738804347944,13.65471624,198.68,198.56,5.0357]
[1738804348146,16.68051624,198.68,198.56,5.0357]
[1738804348545,5.0344,198.63,198.56,5.0357]
[1738804349047,0.03263875,198.61,198.58,0.03828902]
[1738804350846,0.03263875,198.61,198.58,13.69300526]
[1738804351846,0.03263875,198.61,198.59,5.0352]
[1738804353543,0.03263875,198.61,198.58,13.69300526]
[1738804353747,13.65471624,198.77,198.58,13.69300526]
[1738804353950,1.4769,198.76,198.63,13.65471624]
[1738804354147,13.65471624,198.74,198.6,13.65471624]
[1738804354748,5.0333,198.67,198.61,5.0347]
[1738804354953,0.03622067,198.69,198.65,0.03524148]
[1738804355247,5.0334,198.66,198.57,13.65471624]
[1738804355441,0.03409671,198.69,198.65,0.03617485]
[1738804355846,3.0984,198.7,198.52,3.1799]
[1738804355847,13.65471624,198.68,198.52,3.1799]
[1738804356046,13.65471624,198.64,198.52,3.1799]
[1738804356242,13.65471624,198.64,198.58,0.03275326]
[1738804356441,5.0352,198.59,198.58,0.03275326]
[1738804357045,5.0352,198.59,198.49,27.89094944]
[1738804357046,0.03498794,198.6,198.49,27.89094944]
[1738804357247,13.65471624,198.56,198.49,27.89094944]
[1738804357452,1.584,198.59,198.49,27.89094944]
[1738804357453,16.79101624,198.59,198.49,27.89094944]
[1738804357647,5.0361,198.56,198.49,32.92854944]
[1738804357846,16.79101624,198.59,198.49,27.89094944]
[1738804358349,13.68949293,198.56,198.52,0.03579988]
[1738804358541,13.68949293,198.56,198.49,27.89094944]
[1738804358740,5.0372,198.52,198.49,27.89094944]
[1738804359346,5.0373,198.51,198.49,27.89094944]
[1738804359743,5.0373,198.51,198.49,20.29144944]
[1738804360443,5.0377,198.49,198.48,0.03850362]
[1738804360644,0.03326006,198.52,198.48,0.03850362]
[1738804361452,5.0374,198.51,198.48,0.03850362]
[1738804361953,0.03326006,198.52,198.48,0.03850362]
[1738804362156,0.03326006,198.52,198.49,13.65471624]
[1738804362556,0.03326006,198.52,198.48,5.07630362]
[1738804363058,0.03326006,198.52,198.49,5.0377]
[1738804363252,0.03326006,198.52,198.48,0.03850362]
[1738804364350,0.03326006,198.52,198.48,5.07630362]
[1738804364555,0.03326006,198.52,198.48,0.03850362]
[1738804365055,0.03326006,198.52,198.51,5.0372]
[1738804365958,0.03326006,198.52,198.48,0.03850362]
[1738804366154,0.03326006,198.52,198.48,5.07640362]
[1738804366852,0.03326006,198.52,198.48,0.03850362]
[1738804370158,0.03326006,198.52,198.49,13.65471624]
[1738804370756,0.03326006,198.52,198.51,5.0372]
[1738804372861,0.03326006,198.52,198.49,5.0375]
[1738804373557,0.03326006,198.52,198.48,0.03850362]
[1738804376063,5.0373,198.51,198.48,0.03850362]
[1738804376359,0.03326006,198.52,198.48,0.03850362]
[1738804377766,5.07026006,198.52,198.48,0.03850362]
[1738804378066,0.03326006,198.52,198.48,0.03850362]
[1738804384469,0.03326006,198.52,198.49,5.0377]
[1738804385266,0.03326006,198.52,198.51,5.0372]
[1738804385667,0.03326006,198.52,198.48,0.03850362]
[1738804385871,0.03326006,198.52,198.49,5.0375]
[1738804386064,0.03326006,198.52,198.48,0.03850362]
[1738804387460,0.03326006,198.52,198.48,5.07630362]
[1738804387865,0.03326006,198.52,198.48,0.03850362]
[1738804388160,0.03326006,198.52,198.48,5.07650362]
[1738804388364,0.03326006,198.52,198.48,0.03850362]
[1738804388560,0.03326006,198.52,198.5,5.0374]
[1738804388764,0.03326006,198.52,198.48,13.69321986]
[1738804388968,13.65471624,198.63,198.48,13.69321986]
[1738804389270,13.65471624,198.63,198.51,13.65471624]
[1738804390366,0.03485893,198.59,198.55,0.0321467]
[1738804391761,5.0359,198.57,198.55,0.0321467]
[1738804391961,0.03485893,198.59,198.55,0.0321467]
[1738804395072,0.03485893,198.59,198.55,5.0682467]
[1738804395371,0.03485893,198.59,198.55,0.0321467]
[1738804395769,0.03485893,198.59,198.58,5.0355]
[1738804396172,1.5188,198.68,198.57,13.65471624]
[1738804396365,20.33674098,198.7,198.57,13.65471624]
[1738804396871,20.33674098,198.7,198.58,1.487]
[1738804397073,20.33674098,198.7,198.6,13.65471624]
[1738804397269,16.72121624,198.72,198.6,13.65471624]
[1738804397573,0.03385313,198.67,198.63,0.03626186]
[1738804398067,0.03385313,198.67,198.63,5.07036186]
[1738804398575,0.03385313,198.67,198.63,0.03626186]
[1738804398775,0.03385313,198.67,198.63,13.6909781]
[1738804398974,0.03385313,198.67,198.63,0.03626186]
[1738804400470,0.03385313,198.67,198.64,5.0339]
[1738804400868,0.03385313,198.67,198.63,13.6909781]
[1738804401976,0.03385313,198.67,198.63,0.03626186]
[1738804402677,5.0339,198.64,198.63,0.03626186]
[1738804403073,0.03385313,198.67,198.63,0.03626186]
[1738804404379,5.06725313,198.67,198.63,0.03626186]
[1738804404583,0.03385313,198.67,198.63,0.03626186]
[1738804404878,5.0336,198.66,198.63,0.03626186]
[1738804405083,13.65471624,198.66,198.63,0.03626186]
[1738804406782,5.0339,198.64,198.63,0.03626186]
[1738804407573,0.03385313,198.67,198.63,0.03626186]
[1738804409085,0.03385313,198.67,198.64,5.0339]
[1738804409783,0.03385313,198.67,198.63,0.03626186]
[1738804409985,0.03385313,198.67,198.65,5.0337]
[1738804410279,0.03385313,198.67,198.63,13.6909781]
[1738804410982,0.03385313,198.67,198.66,5.0334]
[1738804413786,5.313e-05,198.67,198.66,18.68811624]
[1738804413985,3.0284,198.77,198.72,5.0318]
[1738804414884,8.059,198.77,198.72,5.0318]
[1738804415190,0.03594622,198.76,198.73,0.03451644]
[1738804419890,5.06684622,198.76,198.73,0.03451644]
[1738804420091,0.03594622,198.76,198.73,0.03451644]
[1738804421285,5.06684622,198.76,198.73,0.03451644]
[1738804421488,0.03594622,198.76,198.73,0.03451644]
[1738804421690,0.03594622,198.76,198.75,5.0311]
[1738804423093,18.28731624,198.87,198.73,0.03451644]
[1738804423395,18.28731624,198.87,198.78,5.0303]
[1738804423787,5.029,198.84,198.78,5.0303]
[1738804424393,5.06209939,198.83,198.79,0.03637261]
[1738804424695,0.03299939,198.83,198.79,0.03637261]
[1738804427891,5.0294,198.82,198.79,0.03637261]
[1738804428092,0.03299939,198.83,198.79,0.03637261]
[1738804429101,5.0294,198.82,198.79,0.03637261]
[1738804432107,0.03299939,198.83,198.79,0.03637261]
[1738804432807,0.03299939,198.83,198.8,5.0296]
[1738804433009,0.03299939,198.83,198.79,0.03637261]
[1738804433503,5.0294,198.82,198.79,0.03637261]
[1738804434509,0.03299939,198.83,198.79,5.06637261]
[1738804436714,0.03299939,198.83,198.8,5.0298]
[1738804436908,0.03299939,198.83,198.79,0.03637261]
[1738804438815,0.03299939,198.83,198.81,5.0295]
[1738804439314,0.03299939,198.83,198.79,0.03637261]
[1738804440915,5.0294,198.82,198.79,0.03637261]
[1738804442916,5.06209939,198.83,198.79,0.03637261]
[1738804445013,0.03299939,198.83,198.79,0.03637261]
[1738804445615,0.03299939,198.83,198.8,5.0298]
[1738804445916,0.03299939,198.83,198.79,0.03637261]
[1738804446821,0.03299939,198.83,198.8,13.77075786]
[1738804447117,0.03299939,198.83,198.8,5.0299]
[1738804447313,0.03299939,198.83,198.82,5.0294]
[1738804447514,9.939e-05,198.83,198.82,13.77025786]
[1738804450619,9.939e-05,198.83,198.82,18.67929307]
[1738804455526,3.0219,198.96,198.9,5.0273]
[1738804455725,3.0219,198.96,198.86,13.64989307]
[1738804456625,0.02514623,198.93,198.89,5.06125377]
[1738804459022,0.02514623,198.93,198.89,0.03365377]
[1738804460830,5.0274,198.9,198.89,0.03365377]
[1738804461232,0.02514623,198.93,198.83,13.64989307]
[1738804461430,13.64989307,198.94,198.82,5.0291]
[1738804462430,0.0323094,198.9,198.86,0.0375949]
[1738804463834,5.0281,198.87,198.86,0.0375949]
[1738804465736,5.0278,198.89,198.86,0.0375949]
[1738804466634,0.0323094,198.9,198.86,0.0375949]
[1738804466836,0.0323094,198.9,198.89,5.0276]
[1738804467134,13.64989307,199.01,198.87,13.64989307]
[1738804467639,5.0257,198.97,198.91,5.0271]
[1738804468032,13.64989307,199.01,198.91,5.0271]
[1738804468234,0.0264906,198.96,198.93,5.0265]
[1738804472744,0.0264906,198.96,198.95,8.72779343]
[1738804474543,8.72779343,199.09,198.95,8.72779343]
[1738804474745,4.5333,199.09,199.05,8.72779343]
[1738804474943,5.0228,199.08,199.05,8.72779343]
[1738804475637,8.72779343,199.07,198.99,8.72779343]
[1738804475845,8.72779343,199.03,198.97,8.72779343]
[1738804476045,5.0243,199.02,199.01,0.0349785]
[1738804476244,8.72779343,199.03,198.95,8.72779343]
[1738804476443,8.72779343,199.01,198.95,8.72779343]
[1738804476644,5.0254,198.98,198.92,5.0266]
[1738804476941,13.63794129,199.07,198.94,13.63794129]
[1738804477341,5.0246,199.01,198.99,0.03734499]
[1738804477542,0.03432671,199.02,198.94,13.63794129]
[1738804477738,0.03432671,199.02,198.94,18.66424129]
[1738804478749,5.0251,198.99,198.96,0.03530835]
[1738804479048,0.03432671,199.02,198.96,5.06110835]
[1738804479245,0.03432671,199.02,198.96,0.03530835]
[1738804479446,0.03432671,199.02,198.97,13.63794129]
[1738804480749,0.03432671,199.02,198.99,5.025]
[1738804481553,0.03432671,199.02,198.97,18.66334129]
[1738804481746,0.03432671,199.02,198.97,13.63794129]
[1738804482753,0.03432671,199.02,198.98,5.0253]
[1738804484854,5.05892671,199.02,198.97,13.63794129]
[1738804485151,0.03432671,199.02,198.96,0.03530835]
[1738804485743,5.0252,198.99,198.96,0.03530835]
[1738804485950,0.03432671,199.02,198.96,0.03530835]
[1738804486954,5.05882671,199.02,198.96,5.06100835]
[1738804488055,0.03432671,199.02,198.96,0.03530835]
[1738804488654,0.03432671,199.02,198.97,5.0253]
[1738804489747,0.03432671,199.02,198.96,0.03530835]
[1738804490353,0.03432671,199.02,198.97,5.0254]
[1738804490555,0.03432671,199.02,198.96,0.03530835]
[1738804490757,0.03432671,199.02,198.97,13.63794129]
[1738804491058,0.03432671,199.02,199.01,5.0246]
[1738804493255,0.18128,199.08,199.0,13.63794129]
[1738804493959,0.18128,199.08,199.04,5.0236]
[1738804494355,0.2143285,199.08,199.05,5.0235]
[1738804496460,0.2143285,199.08,199.04,0.0368357]
[1738804496661,0.2143285,199.08,199.04,5.0606357]
[1738804497856,0.2143285,199.08,199.04,0.0368357]
[1738804498060,5.0236,199.05,199.04,0.0368357]
[1738804500165,6.596,199.07,199.04,0.0368357]
[1738804503372,1.5728,199.07,199.04,0.0368357]
[1738804503568,5.0245,199.02,198.96,5.0258]
[1738804503867,13.63794129,199.05,198.96,5.0258]
[1738804504071,13.63794129,199.05,198.91,2.977]
[1738804504672,0.03486237,199.0,198.96,0.0383102]
[1738804505871,5.0251,198.99,198.96,0.0383102]
[1738804506072,13.63794129,198.99,198.96,0.0383102]
[1738804507270,5.0256,198.97,198.96,0.0383102]
[1738804508362,13.63794129,198.99,198.85,56.15646415]
[1738804508668,3.1579,198.98,198.87,5.0279]
[1738804509064,5.026,198.96,198.89,5.0276]
[1738804509271,5.026,198.96,198.85,56.15646415]
[1738804509669,0.03444139,198.92,198.89,0.03586526]
[1738804510171,4.139e-05,198.92,198.9,5.0273]
[1738804511168,4.139e-05,198.92,198.91,5.0271]
[1738804513671,4.139e-05,198.92,198.89,0.03586526]
[1738804514467,4.139e-05,198.92,198.91,5.0271]
[1738804521281,4.139e-05,198.92,198.89,0.03586526]
[1738804523382,4.139e-05,198.92,198.9,18.66524129]
[1738804524281,4.139e-05,198.92,198.89,0.03586526]
[1738804525981,5.02694139,198.92,198.89,0.03586526]
[1738804526784,5.0272,198.91,198.89,0.03586526]
[1738804528077,4.139e-05,198.92,198.76,27.90618397]
[1738804528078,168.27588258,198.9,198.76,27.90618397]
[1738804528384,13.63794129,198.8,198.76,27.90618397]
[1738804529176,5.0305,198.78,198.76,27.93889782]
[1738804529377,13.63794129,198.77,198.76,27.93889782]
[1738804529782,13.67453876,198.8,198.76,0.03271385]
[1738804529977,0.03659747,198.8,198.76,0.03271385]
[1738804530779,13.67453876,198.8,198.76,0.03271385]
[1738804531186,5.0304,198.78,198.76,0.03271385]
[1738804532379,0.03659747,198.8,198.76,0.03271385]
[1738804532987,5.0305,198.78,198.76,0.03271385]
[1738804533692,0.03659747,198.8,198.76,0.03271385]